Cogmind - Beta 10.2 --- EXPLORER MODE // 2020.11.17 @ 15:53:07 Player: HawkeyeFierce Result: Destroyed by B-36 Bruiser with Hammer Performance ------------- Evolutions (1) 500 Regions Visited (3) 600 Robots Destroyed (7) 35 Value Destroyed (177) 177 Prototype IDs (1) 20 Alien Tech Used (0) 0 Bonus (7) 7 TOTAL SCORE: 1339 Bonus ------- Follower Combat Kills 7 Cogmind --------- Core Integrity 0/400 Matter 295/300 Energy 100/100 System Corruption 3% Temperature Cool (0) Movement Core (150) Ox2 Location -9/Materials Parts ------- > --- POWER (1) -------- (None) > --- PROPULSION (3) --- (None) > --- UTILITY (4) ------ Medium Storage Unit > --- WEAPON (2) ------- (None) > --- INVENTORY (8) ---- (None) Peak State ------------ > --- POWER ------------ Light Ion Engine > --- PROPULSION ------- Improved Aluminum Leg Improved Aluminum Leg Hover Unit > --- UTILITY ---------- Sensor Array Signal Interpreter ECM Suite Hacking Suite > --- WEAPON ----------- Light Assault Rifle Datajack > --- INVENTORY -------- Hover Unit Medium Storage Unit Sensor Array Experimental Sensor Array [Rating: 14] Favorites ----------- Power Light Ion Engine Engine Light Ion Engine Propulsion Aluminum Leg Leg Aluminum Leg Hover Unit Hover Unit Utility Sensor Array Device Sensor Array Storage Medium Storage Unit Processor Signal Interpreter Hackware Hacking Suite Protection Core Shielding Weapon EM Pulse Gun Energy Gun EM Pulse Gun Energy Cannon Light EM Pulse Cannon Ballistic Gun Light Assault Rifle Special Melee Weapon Datajack Build | -11 -10 -10 -9 ------- Run | Scr Mat Min Mat Slots Evolved 3 | . 1 . 2 Power . | . . . . Propulsion 1 | . . . 1 Utility 2 | . 1 . 1 Weapon . | . . . . Parts Attached 26 | 7 5 . 14 Power 3 | 1 1 . 1 Engine 3 | 1 1 . 1 Core . | . . . . Reactor . | . . . . Propulsion 7 | 2 . . 5 Treads . | . . . . Leg 5 | 2 . . 3 Wheel . | . . . . Hover 2 | . . . 2 Flight . | . . . . Utility 9 | 2 2 . 5 Device 4 | 1 . . 3 Storage 2 | 1 . . 1 Processor 1 | . 1 . . Hackware 1 | . . . 1 Protection 1 | . 1 . . Artifact . | . . . . Weapon 7 | 2 2 . 3 Energy Gun 1 | 1 . . . Energy Cannon 1 | . . . 1 Ballistic Gun 4 | 1 2 . 1 Ballistic Cannon . | . . . . Launcher . | . . . . Special Weapon . | . . . . Impact Weapon . | . . . . Slashing Weapon . | . . . . Piercing Weapon . | . . . . Special Melee Weapon 1 | . . . 1 Unidentified Prototypes 1 | . . . 1 Parts Lost 15 | . . . 15 Power 2 | . . . 2 Propulsion 4 | . . . 4 Utility 6 | . . . 6 Weapon 3 | . . . 3 Highest Loss Streak 9 | . . . 9 Average Slot Usage (%) 95 | . 100 100 78 Engine 11 | . 12 12 8 Leg 22 | . 25 25 11 Hover 1 | . . . 9 Device 13 | . 12 12 16 Storage 10 | . 12 12 3 Processor 6 | . 2 12 9 Protection 4 | . 9 . . Energy Gun 9 | . 12 12 . Ballistic Gun 11 | . 12 12 7 Special Melee Weapon 1 | . . . 6 Naked Turns . | . . . . Heaviest Build 19 | 17 19 15 19 Greatest Support 26 | 20 20 20 26 Greatest Overweight (x) 2 | . . . 2 Average Overweight (x) . | . . . . Largest Inventory Capacity 8 | 8 8 8 8 Average Capacity 7 | 7 8 8 5 Most Carried 8 | 8 8 8 8 Average Carried 6 | 5 7 7 3 Final Capacity 8 | 8 8 8 8 Final Carried 8 | 7 8 8 . Class Distribution -------------------- 100% | Hacker-Mutant Dominant Class ---------------- Hacker-Mutant | -10/Materials Hacker-Mutant | -10/Mines Hacker-Mutant | -9/Materials Resources | -11 -10 -10 -9 ----------- Run | Scr Mat Min Mat Matter Collected 475 | 165 182 30 98 Remotely . | . . . . Salvage Created 211 | . 192 . 19 Parts 16 | . 12 . 4 Haulers Intercepted . | . . . . Recyclers Shooed . | . . . . Parts Field Recycled . | . . . . Retrieved Matter . | . . . . Parts Self-Destructed . | . . . . Prevented . | . . . . Kills | -11 -10 -10 -9 ------- Run | Scr Mat Min Mat Combat Hostiles Destroyed 5 | . 5 . . Guns 4 | . 4 . . AOE 1 | . 1 . . Classes Destroyed 4 | . 3 . 1 Operator 1 | . . . 1 Watcher 1 | . 1 . . Swarmer 2 | . 2 . . Grunt 3 | . 3 . . Best Kill Streak 2 | . 2 . 1 Combat Bots Only 2 | . 2 . . Max Kills in Single Turn 1 | . 1 . 1 Gunslinging . | . . . . Exploded 1 | . 1 . . Melee . | . . . . Uniques/NPCs Destroyed . | . . . . Combat | -11 -10 -10 -9 -------- Run | Scr Mat Min Mat Damage Taken 1258 | . 129 10 1119 Core 448 | . 37 7 404 Absorbed by Shields . | . . . . Core Remaining (%) 91 | 100 . 82 . Volleys Fired 20 | . 19 . 1 Largest 2 | . 2 . 2 Hottest 60 | . 60 . 60 Shots Fired 40 | . 38 . 2 Gun 40 | . 38 . 2 Cannon . | . . . . Launcher . | . . . . Special . | . . . . Kinetic 20 | . 19 . 1 Thermal . | . . . . Explosive . | . . . . Electromagnetic 20 | . 19 . 1 Robot Hit Streak 20 | . 20 . 7 Robot Miss Streak 1 | . 1 . . Penetration Max . | . . . . Secondary Targets . | . . . . Shots Hit Robots 41 | . 31 . 10 Core Hits 10 | . 9 . 1 Critical Hits . | . . . . Critical Kills . | . . . . Critical Parts Destroyed . | . . . . Melee Attacks 9 | . . . 9 Impact . | . . . . Slashing . | . . . . Piercing . | . . . . Sneak Attacks 7 | . . . 7 Combat Hostiles . | . . . . Follow-up Attacks . | . . . . Damage Inflicted 404 | . 371 11 22 Guns 359 | . 343 . 16 Cannons . | . . . . Explosions 28 | . 28 . . Melee . | . . . . Ramming 17 | . . 11 6 Kinetic 123 | . 123 . . Thermal 28 | . 28 . . Explosive . | . . . . Electromagnetic 236 | . 220 . 16 Impact . | . . . . Slashing . | . . . . Piercing . | . . . . Highest Corruption 3 | . . . 3 Average Corruption 2 | . . . 2 Corruption Purged . | . . . . Effects 1 | . . . 1 Matter Fused 1 | . . . 1 Overload Shots . | . . . . Overflow Damage . | . . . . Projectiles . | . . . . Explosions . | . . . . Melee . | . . . . Knockbacks . | . . . . Impact . | . . . . Kinetic . | . . . . Secondary . | . . . . Self-Inflicted Damage 5 | . . 3 2 Shots . | . . . . Rammed 3 | . . 1 2 Targets Rammed 4 | . . 2 2 Kicked 1 | . . 1 . Crushed . | . . . . Highest Temperature 90 | . 90 . 14 Average Temperature 44 | . 48 . 7 Received Heat Transfer 852 | . 108 . 744 Siege Activations . | . . . . Robots Corrupted . | . . . . Combat Hostiles . | . . . . Parts Fried 1 | . 1 . . Impact Corruptions . | . . . . Robots Melted . | . . . . Combat Hostiles . | . . . . Parts Melted 1 | . 1 . . Heat Transferred 50 | . 50 . . Parts Sabotaged . | . . . . Parts Stolen . | . . . . Parts Stripped . | . . . . Power Chain Reactions 1 | . 1 . . Missiles Intercepted . | . . . . Alert | -11 -10 -10 -9 ------- Run | Scr Mat Min Mat Peak Influence 195 | . 169 50 195 Initial . | . . . . Average 52 | . 60 18 99 Maximum Alert Level . | . . . . Low Security (%) 100 | 100 100 100 100 Level 1 . | . . . . Level 2 . | . . . . Level 3 . | . . . . Level 4 . | . . . . Level 5 . | . . . . High Security . | . . . . Max Security . | . . . . Squads Dispatched 3 | . . . 3 Investigation . | . . . . Extermination . | . . . . Reinforcement 3 | . . . 3 Assault . | . . . . Garrison . | . . . . Intercept . | . . . . Construction Impeded . | . . . . Haulers Reinforced . | . . . . Stealth | -11 -10 -10 -9 --------- Run | Scr Mat Min Mat Distress Signals 5 | . 2 . 3 Communications Jammed . | . . . . Distress Signals . | . . . . Times Spotted 35 | . 10 . 25 Peak Tracking Total 11 | . 4 . 11 Tactical Retreats 6 | . 2 . 4 Traps | -11 -10 -10 -9 ------- Run | Scr Mat Min Mat Traps Triggered . | . . . . Indirectly . | . . . . Trap Hack Attempts . | . . . . Triggered . | . . . . Disarmed . | . . . . Reprogrammed . | . . . . Reused . | . . . . Traps Extracted . | . . . . Installed . | . . . . Triggered . | . . . . Machines | -11 -10 -10 -9 ---------- Run | Scr Mat Min Mat Machines Disabled 1 | . 1 . . Max in Single Turn 1 | . 1 . . Machines Sabotaged . | . . . . Garrisons Compromised . | . . . . Overloaded Fab Kills . | . . . . Fab Network Shutdowns . | . . . . Hacking | -11 -10 -10 -9 --------- Run | Scr Mat Min Mat Machines Accessed 3 | . 3 . . Terminals 3 | . 3 . . Fabricators . | . . . . Repair Stations . | . . . . Recycling Units . | . . . . Scanalyzers . | . . . . Garrison Access . | . . . . Total Hacks 4 | . 4 . . Successful 4 | . 4 . . Failed . | . . . . Catastrophic . | . . . . Database Lockouts . | . . . . Manual . | . . . . Terminals 4 | . 4 . . Fabricators . | . . . . Repair Stations . | . . . . Recycling Units . | . . . . Scanalyzers . | . . . . Garrison Access . | . . . . Terminal Hacks 4 | . 4 . . Record 1 | . 1 . . Alert Level 1 | . 1 . . Zone Layout 2 | . 2 . . Fabricator Hacks . | . . . . Repair Station Hacks . | . . . . Recycling Unit Hacks . | . . . . Scanalyzer . | . . . . Garrison Access Hacks . | . . . . Unauthorized Hacks . | . . . . Terminals . | . . . . Fabricators . | . . . . Repair Stations . | . . . . Recycling Units . | . . . . Scanalyzers . | . . . . Garrison Access . | . . . . Data Cores Recovered . | . . . . Used . | . . . . Hacking Detections 1 | . 1 . . Full Trace Events . | . . . . Feedback Events . | . . . . Feedback Blocked . | . . . . Robot Schematics Acquired . | . . . . Robots Built . | . . . . Matter . | . . . . Time . | . . . . Total Robot Build Rating . | . . . . Part Schematics Acquired . | . . . . Parts Built . | . . . . Matter . | . . . . Time . | . . . . Total Part Build Rating . | . . . . Parts Repaired . | . . . . Time . | . . . . Parts Recycled . | . . . . Recycled Matter . | . . . . Retrieved Matter . | . . . . Retrieved Components . | . . . . Parts Scanalyzed . | . . . . Part Schematics Acquired . | . . . . Parts Damaged . | . . . . Bothacking | -11 -10 -10 -9 ------------ Run | Scr Mat Min Mat Used RIF Installer . | . . . . Robots Hacked 4 | . . . 4 Non-combat 3 | . . . 3 Combat 1 | . . . 1 Robot Hacks Applied 6 | . . . 6 parse_system 2 | . . . 2 no_distress 3 | . . . 3 find_recycling 1 | . . . 1 Relay Couplers Released . | . . . . Robots Rewired . | . . . . Allies Hacked . | . . . . Hacks Repelled . | . . . . Allies | -11 -10 -10 -9 -------- Run | Scr Mat Min Mat Total Allies 1 | . . 1 . Largest Group 1 | . . 1 . Highest-Rated Group 31 | . . 31 . Highest-Rated Ally 31 | . . 31 . Total Orders . | . . . . Ally Attacks 7 | . . 7 . Total Damage 106 | . . 106 . Kills 2 | . . 2 . Allies Corrupted . | . . . . Allies Melted . | . . . . Intel | -11 -10 -10 -9 ------- Run | Scr Mat Min Mat Robot Analysis Total . | . . . . Derelict Logs Recovered . | . . . . Drone Launches . | . . . . Drone Recoveries . | . . . . Exploration | -11 -10 -10 -9 ------------- Run | Scr Mat Min Mat Turns Passed 1946 | 127 861 561 397 Spaces Moved 1437 | 79 597 459 302 Core 26 | 9 . . 17 Treads . | . . . . Legs 1292 | 70 597 459 166 Wheels . | . . . . Hover 119 | . . . 119 Flight . | . . . . Fastest Speed 50 | 50 120 120 50 Average Speed 115 | 112 120 120 99 Slowest Speed 150 | 120 120 120 150 Overloaded Moves . | . . . . Propulsion Burnouts . | . . . . Robots Hopped . | . . . . Cave-ins Triggered . | . . . . Exploration Rate (%) 47 | 6 60 84 38 Regions Visited 3 Branch Regions 1 Pre-discovered Areas . | . . . . Known Exits Taken 3 | 1 1 1 . Unknown Exits Taken . | . . . . Scrap Searched 1 | . . 1 . Spaces Dug . | . . . . Terrain Destroyed . | . . . . Melee . | . . . . Projectile . | . . . . AOE . | . . . . Terrain Rammed . | . . . . Walls Destroyed . | . . . . Machines Disabled . | . . . . Actions | -11 -10 -10 -9 --------- Run | Scr Mat Min Mat Total 1682 | 117 705 470 390 Wait 143 | 18 71 6 48 Move 1434 | 78 596 458 302 Hop . | . . . . Pick Up 30 | 14 8 2 6 Fast Attach . | . . . . Attach 16 | 7 1 . 8 Detach . | . . . . Swap 10 | . 4 . 6 Drop 16 | . 6 2 8 Fire 20 | . 19 . 1 Melee 9 | . . . 9 Ram . | . . . . Kick 4 | . . 2 2 Crush . | . . . . Escape Stasis . | . . . . Rewire . | . . . . Trap . | . . . . Miscellaneous . | . . . . Route ------- -11/Scrapyard -10/Materials (discovered 3 exits: *Mat / *Min x2) -10/Mines -9/Materials History --------- Turn | Location | Event 32 | -11/Scrapyard | Identified exit to Materials 32 | -11/Scrapyard | Discovered exit to Materials (range 15) 128 | -11/Scrapyard | Entered Materials 128 | -10/Materials | Evolved 1 slot: Utility x1 158 | -10/Materials | Identified exit to Materials 158 | -10/Materials | Discovered exit to Materials (range 18) 301 | -10/Materials | Build established: Hacker-Mutant 717 | -10/Materials | Identified exit to Mines 717 | -10/Materials | Discovered exit to Mines (range 13) 789 | -10/Materials | Discovered exit to Mines (range 16) 989 | -10/Materials | Entered Mines 1022 | -10/Mines | Met a Derelict bent on vengeance 1064 | -10/Mines | Received a Mining Laser from a helpful Derelict 1086 | -10/Mines | Found a damaged Exp. Sensor Array with a note attached 1089 | -10/Mines | Found Prototype Device 1205 | -10/Mines | Discovered exit to Materials (range 5) 1550 | -10/Mines | Entered Materials 1550 | -9/Materials | Evolved 2 slots: Propulsion x1, Utility x1 1861 | -9/Materials | Identified Exp. Sensor Array 1885 | -9/Materials | Core integrity fell below 50% 1912 | -9/Materials | Lost 9 parts (1p2n3u3w) 1934 | -9/Materials | Core integrity fell below 20% 1947 | -9/Materials | Destroyed by B-36 Bruiser with Hammer Last Messages --------------- 01872_ Slammed into G-34 Mercenary. 01873_ G-34 Mercenary destroyed. 01874_ Acquired 37 matter. 01875_ Y-45 Defender destroyed. 01877_ Acquired Ion Engine. 01879_ Lgt. EM Pulse Cannon destroyed. 01881_ Sensor Array destroyed. 01885_ R-06 Scavenger collects Hvy. Assault Rifle. 01902_ U-05 Engineer lays Concrete. 01909_ K-01 Serf collects debris. 01916_ Exp. Sensor Array destroyed. 01918_ Ion Engine destroyed. 01918_ System corrupted by crushing effect (+1). 01928_ Signal Interpreter destroyed. 01928_ Imp. Aluminum Leg destroyed. 01928_ System corrupted by crushing effect (+1). 01928_ Knocked back. 01931_ K-01 Serf collects debris. 01936_ System corrupted: Matter fused (-5). 01938_ G-34 Mercenary destroyed. Map ----- +----------------------------------------------------+ | ]] #??????# #?? ] #?"""" #???????????? | | #??????# + ?! #""""" #???????????? | | #??????# # #""""" #???????##### | | #??????# # = #""""" #???????# | | #??????# #####+##""""" #???????# "" | | #############+### #??# ##""""" #???????# "" | | ??????# #??# ## #???????# "" | | ??????# #### ######+####???????# | | ??????# ############ "" | | ??????# # "" | | ??????# ^ !# "" | | ??????? ^ % + | | ??????? """ """ """ [# "" | | ??????? """ """ """ ## "" | | ???????? """ """ """ ## "" | | ???????? ######### "" """ """ """ ## | | ??????????????????# "T """ """ """ ###### | | ??????????????????# "" #????? | | ???????????????#### #????? | | ???????????????+ #????? | | ???????????????#######g######### #### +????? | | ????????????????## [%= "T" #?#! !#??# #????? | | ????????????????# """! #?#! !#??# #????? | | ????????????????## """ Yg #?##!!!!##??####????? | | ?????????????????# """ b #??######???????????? | | ?????????????????# """ @ #???????????????????? | | ?????????????????# """ #???????????????????? | | ?????????????????# #???????????????????? | | ?????????????????#############???????????????????? | | | | | | | | | | | | | | | | | | | | | | | | | | | | | | | | | | | | | | | | | | | +----------------------------------------------------+ Best States ------------- Heat Dissipation 28 Energy Generation 10 Energy Capacity 250 Matter Stores 300 Matter Capacity 300 Sight Range 16 Robot Scan Range 30 Terrain Scan Density 10 ECM Strength 1 Resistance: KI 35 Resistance: TH 35 Resistance: EX 35 Resistance: EM 35 Resistance: I 35 Resistance: S 35 Resistance: P 35 Core Shielding 20 Evasion (%) 51 Offensive Hacking 30 Item Schematics ----------------- None Robot Schematics ------------------ None Fabricated ------------ Nothing Alien Tech Used ----------------- None Achievements -------------- None Challenges ------------ None Game ------ Seed GreatSlugExpander Manual? 0 Play Time 00:21:40 Cumulative 2.3 hours Start 2020.11.17 @ 15:32:48 End 2020.11.17 @ 15:53:07 Sessions 1 Manual Loads 0 Difficulty Explorer Special Mode None Game No. 6 Rogue 4 Adventurer 0 Explorer 2 Win Type - Total 0 Types 0/0/0/0/0/0/0/0/0 Lore% 5 Gallery% 7 Achievement% 7 Wizard Run 0 Options --------- ASCII 0 Keyboard 0 Movement Numpad Keybinds 0 Fullscreen 1 Font 18/SmallcapsGlow Map View 76x50 Tactical HUD 1 Map Filters NONE Filters NONE Steam 1 RUN: 4bed93c7-c133-44bf-b0d0-7e2252177dcf